Workbook

Sheet NOTES
A2: The model has actual and test data to illustrate the workings of the model. | D2: ='Model update'!B5 -> 2021
A4: Issue | B4: Location | C4: Item | D4: Comment
A6: 1 | B6: 'Model update'!B21 | C6: CPI | D6: ="Updated June "&D2-1&" CPI for "&D2 -> Updated June 2020 CPI for 2021 | E6: NOTE: This worksheet is programmed to update for each year - use as checklist and note any placeholders or changes
E7: NOTE: Worksheet names in this file are programmed to update each year once each worksheet is accessed and a cell is selected
A8: =A6+1 -> 2 | B8: 'Model update'!B36 | C8: ="Xt for "&D2 -> Xt for 2021 | D8: ="Updated "&$D$2&" value" -> Updated 2021 value
A10: =A8+1 -> 3 | B10: 'Model update'!B46 | C10: ="Pass Through Amount for "&D2 -> Pass Through Amount for 2021 | D10: NIL for 2020
A12: =A10+1 -> 4 | B12: 'Model update'!B58 | C12: Real Pre-tax WACC (rptw) | D12: ="Updated "&$D$2&" value" -> Updated 2021 value
A14: =A12+1 -> 5 | B14: ="Prop"&D2&"DistTar!E8:E96" -> Prop2021DistTar!E8:E96 | C14: =D2-1&" tariffs" -> 2020 tariffs | D14: ="Updated from "&D2-1&" model" -> Updated from 2020 model
A16: =A14+1 -> 6 | B16: ARS!B6:B12 | C16: =D2-1&" ARS tariffs" -> 2020 ARS tariffs | D16: ="Updated from "&D2-1&" model" -> Updated from 2020 model
A18: =A16+1 -> 7 | B18: The following is test data to illustrate the workings of the model. | D18: Input data required from DNSPs
B19: ="Prop"&D2&"DistTar!D8:D96" -> Prop2021DistTar!D8:D96 | C19: ="Proposed "&D2&" Tariffs" -> Proposed 2021 Tariffs
B20: ="Prop"&D2&"DistTar!F8:F96" -> Prop2021DistTar!F8:F96 | C20: ="Actual "&D2-2&" Volumes" -> Actual 2019 Volumes
B22: ARS!C6:C12 | C22: ="Proposed "&D2&" Ancillary Reference Services Charges" -> Proposed 2021 Ancillary Reference Services Charges | D22: Calculated using formula

Sheet Model update
A3: Tariff Approval Template for | B3: Aust. Gas Networks (Vic & Albury)
A5: Calendar year commencing | B5: 2021
A7: t | B7: =B5 -> 2021
A8: t-1 | B8: =B7-1 -> 2020
A9: t-2 | B9: 2019
A10: t-3 | B10: 2018
A13: Please fill in yellow highlighted cells where appropriate
A15: CPI
A17: CPI Index June 2016 | B17: 108.6
A18: CPI Index June 2017 | B18: 110.7
A19: CPI Index June 2018 | B19: 113
A20: CPI Index June 2019 | B20: 114.8
A21: CPI Index June 2020 | B21: 114.4
A22: CPI Index June 2021
A25: ="CPI Index June " &$B$10 -> CPI Index June 2018 | B25: =VLOOKUP(A25,A$17:B$22,2,FALSE) -> 113
A26: ="CPI Index June " &$B$9 -> CPI Index June 2019 | B26: =VLOOKUP(A26,A$17:B$22,2,FALSE) -> 114.8
A27: ="CPI Index June " &$B$8 -> CPI Index June 2020 | B27: =VLOOKUP(A27,A$17:B$22,2,FALSE) -> 114.4
A29: ="CPI " &$B$8 -> CPI 2020 | B29: =B26/B25-1 -> 0.01592920354
A30: ="CPI " &$B$5 -> CPI 2021 | B30: =B27/B26-1 -> -0.003484320557
A33: ="Xt for "&B$5 -> Xt for 2021
A34: 2019 | B34: -0.0129320032
A35: 2020 | B35: -0.005964380543
A36: 2021 | B36: -0.002912158543
A37: 2022 | B37: -0.0135
A40: ="Xt for "&B$5 -> Xt for 2021 | B40: =VLOOKUP(B5,A34:B38,2,FALSE) -> -0.002912158543
A43: Pass Through Amounts : PT (t)
A44: 2019 | B44: 0
A45: 2020 | B45: 0
A46: 2021 | B46: 0
A47: 2022 | B47: 0
A50: ="Pass Through Amount for "&B$5 -> Pass Through Amount for 2021 | B50: =VLOOKUP(B5,A44:B48,2,FALSE) -> 0
A51: The Pass Through Amount is to include an amount that reflects the time value of money between incurring the costs and recovering the costs
A52: and excludes any amounts already passed through in reference tariffs.
A55: Pre-tax WACC for distribution tariffs
A58: Pretax WACCD | B58: 0.03605542632

Sheet Prop2021DistTar
B1: ="Tariff Approval - "&'Model update'!B3 -> Tariff Approval - Aust. Gas Networks (Vic & Albury) | D1: ="Prop"&'Model update'!B5&"DistTar" -> Prop2021DistTar
B3: ="PROPOSED "&'Model update'!$B$5&" DISTRIBUTION TARIFFS" -> PROPOSED 2021 DISTRIBUTION TARIFFS
B5: Proposed tariff name | C5: Existing tariff name | D5: ="Prop "&'Model update'!$B$5&" Tariff" -> Prop 2021 Tariff | E5: ="Exist "&'Model update'!$B$8&" Tariff" -> Exist 2020 Tariff | F5: ="Actual "&'Model update'!$B$9&" Volumes" -> Actual 2019 Volumes | G5: Prop Tar Revenue | H5: Exist Tar Revenue
B6: Tariff V - AGN Central - Residential | C6: Tariff V - AGN Central - Residential
B8: Fixed Charge | C8: Fixed Charge | D8: 0.193 | E8: 0.1931 | F8: 205059578 | G8: =D8*$F8 -> 39576498.55 | H8: =E8*$F8 -> 39597004.51
B9: GJ 0 - 0.0274 | C9: GJ 0 - 0.0274 | D9: 11.8856 | E9: 11.8925 | F9: 4898091.689 | G9: =D9*$F9 -> 58216758.58 | H9: 58250555.41
B10: GJ 0.0274 - 0.0493 | C10: GJ 0.0274 - 0.0493 | D10: 6.8338 | E10: 6.8378 | F10: 3062512.153 | G10: 20928595.55 | H10: 20940845.6
B11: GJ > 0.0493 | C11: GJ > 0.0493 | D11: 3.7514 | E11: 3.7538 | F11: 18240946.65 | G11: 68429087.27 | H11: 68472865.54
B12: Tariff V - AGN Central - Non Residential | C12: Tariff V - AGN Central - Non Residential
B14: Fixed Charge | C14: Fixed Charge | D14: 0.193 | E14: 0.1931 | F14: 7304213 | G14: =D14*$F14 -> 1409713.109 | H14: =E14*$F14 -> 1410443.53
B15: GJ 0 - 0.05 | C15: GJ 0 - 0.05 | D15: 8.39 | E15: 8.3949 | F15: 266313.6479 | G15: =D15*$F15 -> 2234371.506 | H15: 2235676.443
B16: GJ 0.05 - 0.55 | C16: GJ 0.05 - 0.55 | D16: 3.9599 | E16: 3.9622 | F16: 1443576.783 | G16: 5716419.704 | H16: 5719739.93
B17: GJ 0.55 - 1.37 | C17: GJ 0.55 - 1.37 | D17: 2.9536 | E17: 2.9553 | F17: 1167065.009 | G17: 3447043.211 | H17: 3449027.221
B18: GJ > 1.37 | C18: GJ > 1.37 | D18: 1.1929 | E18: 1.1936 | F18: 4103544.066 | G18: 4895117.717 | H18: 4897990.198
B19: Tariff V - AGN North - Residential | C19: Tariff V - AGN North - Residential
B21: Fixed Charge | C21: Fixed Charge | D21: 0.193 | E21: 0.1931 | F21: 28977377 | G21: =D21*$F21 -> 5592633.761 | H21: =E21*$F21 -> 5595531.499
B22: GJ 0 - 0.0274 | C22: GJ 0 - 0.0274 | D22: 10.4575 | E22: 10.4636 | F22: 664129.7528 | G22: =D22*$F22 -> 6945136.89 | H22: 6949188.081
B23: GJ 0.0274 - 0.0493 | C23: GJ 0.0274 - 0.0493 | D23: 6.1215 | E23: 6.1251 | F23: 397382.04 | G23: 2432574.158 | H23: 2434004.733
B24: GJ > 0.0493 | C24: GJ > 0.0493 | D24: 3.3609 | E24: 3.3629 | F24: 2557176.083 | G24: 8594413.097 | H24: 8599527.449
B25: Tariff V - AGN North - Non Residential | C25: Tariff V - AGN North - Non Residential
B27: Fixed Charge | C27: Fixed Charge | D27: 0.193 | E27: 0.1931 | F27: 1197219 | G27: =D27*$F27 -> 231063.267 | H27: =E27*$F27 -> 231182.9889
B28: GJ 0 - 0.05 | C28: GJ 0 - 0.05 | D28: 7.5259 | E28: 7.5303 | F28: 37630.69701 | G28: =D28*$F28 -> 283204.8627 | H28: 283370.4377
B29: GJ 0.05 - 0.55 | C29: GJ 0.05 - 0.55 | D29: 3.5788 | E29: 3.5809 | F29: 184739.003 | G29: 661143.9439 | H29: 661531.8958
B30: GJ 0.55 - 1.37 | C30: GJ 0.55 - 1.37 | D30: 2.6691 | E30: 2.6707 | F30: 127263.1457 | G30: 339678.0621 | H30: 339881.6831
B31: GJ > 1.37 | C31: GJ > 1.37 | D31: 1.0785 | E31: 1.0791 | F31: 496073.4155 | G31: 535015.1786 | H31: 535312.8227
B32: Tariff V - Murray Valley - Residential | C32: Tariff V - Murray Valley - Residential
B34: Fixed Charge | C34: Fixed Charge | D34: 0.2457 | E34: 0.2458 | F34: 2990930 | G34: =D34*$F34 -> 734871.501 | H34: =E34*$F34 -> 735170.594
B35: GJ 0 - 0.0274 | C35: GJ 0 - 0.0274 | D35: 9.1045 | E35: 9.1098 | F35: 57802.15263 | G35: =D35*$F35 -> 526259.6986 | H35: 526566.05
B36: GJ 0.0274 - 0.0493 | C36: GJ 0.0274 - 0.0493 | D36: 5.5079 | E36: 5.5111 | F36: 30628.05682 | G36: 168696.2742 | H36: 168794.284
B37: GJ > 0.0493 | C37: GJ > 0.0493 | D37: 3.4455 | E37: 3.4475 | F37: 192707.47 | G37: 663973.5878 | H37: 664359.0028
B38: Tariff V - Murray Valley - Non Residential | C38: Tariff V - Murray Valley - Non Residential
B40: Fixed Charge | C40: Fixed Charge | D40: 0.2457 | E40: 0.2458 | F40: 130312 | G40: =D40*$F40 -> 32017.6584 | H40: =E40*$F40 -> 32030.6896
B41: GJ 0 - 0.05 | C41: GJ 0 - 0.05 | D41: 6.7291 | E41: 6.733 | F41: 4406.90509 | G41: =D41*$F41 -> 29654.50504 | H41: 29671.69197
B42: GJ 0.05 - 0.55 | C42: GJ 0.05 - 0.55 | D42: 3.9744 | E42: 3.9767 | F42: 20671.54976 | G42: 82157.00737 | H42: 82204.55193
B43: GJ 0.55 - 1.37 | C43: GJ 0.55 - 1.37 | D43: 2.9661 | E43: 2.9678 | F43: 12808.44619 | G43: 37991.13226 | H43: 38012.90662
B44: GJ > 1.37 | C44: GJ > 1.37 | D44: 1.3427 | E44: 1.3435 | F44: 28696.12715 | G44: 38530.28992 | H44: 38553.24682
B45: Tariff V - Bairnsdale - Residential | C45: Tariff V - Bairnsdale - Residential
B47: Fixed Charge | C47: Fixed Charge | D47: 0.3176 | E47: 0.3178 | F47: 1657399 | G47: =D47*$F47 -> 526389.9224 | H47: =E47*$F47 -> 526721.4022
B48: GJ 0 - 0.0274 | C48: GJ 0 - 0.0274 | D48: 19.4053 | E48: 19.4166 | F48: 32506.66279 | G48: =D48*$F48 -> 630801.5435 | H48: =E48*$F48 -> 631168.8687
B49: GJ 0.0274 - 0.0493 | C49: GJ 0.0274 - 0.0493 | D49: 11.2868 | E49: 11.2934 | F49: 16112.61018 | G49: 181859.8085 | H49: 181966.1518
B50: GJ > 0.0493 | C50: GJ > 0.0493 | D50: 6.2017 | E50: 6.1999 | F50: 69682.99647 | G50: 432153.0392 | H50: 432027.6098
B51: Tariff V - Bairnsdale - Non Residential | C51: Tariff V - Bairnsdale - Non Residential
B53: Fixed Charge | C53: Fixed Charge | D53: 0.3176 | E53: 0.3178 | F53: 43459 | G53: =D53*$F53 -> 13802.5784 | H53: =E53*$F53 -> 13811.2702
B54: GJ 0 - 0.05 | C54: GJ 0 - 0.05 | D54: 13.7965 | E54: 13.8045 | F54: 1792.271719 | G54: =D54*$F54 -> 24727.07677 | H54: =E54*$F54 -> 24741.41495
B55: GJ 0.05 - 0.55 | C55: GJ 0.05 - 0.55 | D55: 6.7261 | E55: 6.73 | F55: 13124.72776 | G55: 88278.2314 | H55: 88329.41784
B56: GJ 0.55 - 1.37 | C56: GJ 0.55 - 1.37 | D56: 5.0149 | E56: 5.0178 | F56: 10214.24861 | G56: 51223.43536 | H56: 51253.05668
B57: GJ > 1.37 | C57: GJ > 1.37 | D57: 2.0256 | E57: 2.0267 | F57: 41020.00844 | G57: 83090.1291 | H57: 83135.25111
B59: Tariff D - AGN Central | C59: Tariff D - AGN Central
B60: 0 - 10 | C60: 0 - 10 | D60: 1460.155 | E60: 1461.0058 | F60: 1429.1396 | G60: =D60*$F60 -> 2086765.333 | H60: 2087981.245
B61: 10 - 50 | C61: 10 - 50 | D61: 892.6453 | E61: 893.1654 | F61: 1224.1338 | G61: 1092717.283 | H61: 1093353.955
B62: > 50 | C62: > 50 | D62: 163.0154 | E62: 163.1104 | F62: 1251.7937 | G62: 204061.6507 | H62: 204180.5711
B64: Tariff D - AGN North | C64: Tariff D - AGN North
B65: 0 - 10 | C65: 0 - 10 | D65: 1460.155 | E65: 1461.0058 | F65: 429.6987 | G65: =D65*$F65 -> 627426.7053 | H65: 627792.293
B66: 10 - 50 | C66: 10 - 50 | D66: 892.6453 | E66: 893.1654 | F66: 600.4019 | G66: 535945.9341 | H66: 536258.2032
B67: > 50 | C67: > 50 | D67: 163.0154 | E67: 163.1104 | F67: 438.6123 | G67: 71500.55953 | H67: 71542.2277
B69: Tariff D - Murray Valley | C69: Tariff D - Murray Valley
B70: 0 - 10 | C70: 0 - 10 | D70: 1701.986 | E70: 1702.9777 | F70: 68.4403 | G70: =D70*$F70 -> 116484.4324 | H70: 116552.3047
B71: 10 - 50 | C71: 10 - 50 | D71: 1050.2328 | E71: 1050.8447 | F71: 160.8371 | G71: 168916.3979 | H71: 169014.8141
B72: > 50 | C72: > 50 | D72: 178.8732 | E72: 178.9774 | F72: 78.7731 | G72: 14090.39647 | H72: 14098.60463
B74: Tariff D - Bairnsdale | C74: Tariff D - Bairnsdale
B75: 0 - 10 | C75: 0 - 10 | D75: 2415.2923 | E75: 2416.6996 | F75: 16.0097 | G75: =D75*$F75 -> 38668.10514 | H75: 38690.63559
B76: 10 - 50 | C76: 10 - 50 | D76: 1496.2836 | E76: 1497.1554 | F76: 2.7294 | G76: 4083.956458 | H76: 4086.335949
B77: > 50 | C77: > 50 | D77: 272.8881 | E77: 273.0471 | F77: 0 | G77: 0 | H77: 0
B79: Tariff V - Albury - Residential | C79: Tariff V - Albury - Residential
B81: Fixed Charge | C81: Fixed Charge | D81: 0.2511 | E81: 0.2512 | F81: 8209588 | G81: =D81*$F81 -> 2061427.547 | H81: 2062248.506
B82: GJ 0 - 0.0274 | C82: GJ 0 - 0.0274 | D82: 8.607 | E82: 8.612 | F82: 186859.4823 | G82: 1608299.565 | H82: 1609233.862
B83: GJ 0.0274 - 0.0493 | C83: GJ 0.0274 - 0.0493 | D83: 5.1446 | E83: 5.1476 | F83: 110413.0676 | G83: 568031.0677 | H83: 568362.3069
B84: GJ > 0.0493 | C84: GJ > 0.0493 | D84: 2.8251 | E84: 2.8267 | F84: 710587.8273 | G84: 2007481.671 | H84: 2008618.612
B85: Tariff V - Albury - Non Residential | C85: Tariff V - Albury - Non Residential
B87: Fixed Charge | C87: Fixed Charge | D87: 0.2511 | E87: 0.2512 | F87: 338182 | G87: =D87*$F87 -> 84917.5002 | H87: 84951.3184
B88: GJ 0 - 0.05 | C88: GJ 0 - 0.05 | D88: 6.317 | E88: 6.3207 | F88: 11076.58178 | G88: 69970.7671 | H88: 70011.75045
B89: GJ 0.05 - 0.55 | C89: GJ 0.05 - 0.55 | D89: 3.1192 | E89: 3.121 | F89: 57113.87361 | G89: 178149.5946 | H89: 178252.3995
B90: GJ 0.55 - 1.37 | C90: GJ 0.55 - 1.37 | D90: 2.215 | E90: 2.2163 | F90: 41149.01672 | G90: 91145.07204 | H90: 91198.56576
B91: GJ > 1.37 | C91: GJ > 1.37 | D91: 0.8944 | E91: 0.8949 | F91: 171447.0922 | G91: 153342.2792 | H91: 153428.0028
B93: Tariff D - Albury | C93: Tariff D - Albury
B94: 0 - 10 | C94: 0 - 10 | D94: 1255.7339 | E94: 1256.4656 | F94: 49.4562 | G94: =D94*$F94 -> 62103.82691 | H94: 62140.01401
B95: 10 - 50 | C95: 10 - 50 | D95: 779.9261 | E95: 780.3805 | F95: 106.018 | G95: =D95*$F95 -> 82686.20527 | H95: 82734.37985
B96: > 50 | C96: > 50 | D96: 188.5252 | E96: 188.635 | F96: 188.909 | G96: 35614.10701 | H96: 35634.84921
B101: Total Revenue | C101: Total Revenue | G101: =SUM(G8:G97) -> 246778775.8 | H101: =SUM(H8:H97) -> 246922563.2

Sheet 2021TarContForm
B1: ="Tariff Approval - "&'Model update'!B3 -> Tariff Approval - Aust. Gas Networks (Vic & Albury) | F1: ='Model update'!B5&"TarContForm" -> 2021TarContForm
B3: ='Model update'!$B$5&" TARIFF CONTROL FORMULA" -> 2021 TARIFF CONTROL FORMULA
B6: CPI
B8: ="CPI June"&'Model update'!$B$9 -> CPI June2019 | C8: ='Model update'!B26 -> 114.8
B9: ="CPI June"&'Model update'!$B$8 -> CPI June2020 | C9: ='Model update'!B27 -> 114.4
B11: ="CPI "&'Model update'!$B$5 -> CPI 2021 | C11: =(C9/C8-1) -> -0.003484320557
B15: X factor
B17: ="X "&'Model update'!$B$5 -> X 2021 | C17: ='Model update'!B40 -> -0.002912158543
B20: Pass Through Factor (PT)
B22: pass through
B23: ="AP (t) "&'Model update'!$B$7 -> AP (t) 2021 | C23: ='Model update'!B50 -> 0
B25: Revenue
B26: ∑∑p(t-1)q(t-2) | C26: =C41 -> 246922563.2
B28: PT' (t-1) | C28: 0
B29: ="PT' "&'Model update'!$B$5 -> PT' 2021 | C29: =IF(C26="",0,(C23)/((1+C11)*(1-C17)*C26)) -> 0
B31: ="PTt "&'Model update'!$B$5 -> PTt 2021 | C31: =((1+C29)/(1+C28))-1 -> 0
B36: ='Model update'!$B$5&" Distribution price control" -> 2021 Distribution price control
B38: Average price movement allowed | C38: =(1+C11)*(1-C17)*(1+C31) -> 0.9994176911
B40: Proposed distribution tariff revenue | C40: =IF(Prop2021DistTar!G101=0,"",Prop2021DistTar!G101) -> 246778775.8
B41: Existing distribution tariff revenue | C41: =IF(Prop2021DistTar!H101=0,"",Prop2021DistTar!H101) -> 246922563.2
B42: Average price movement | C42: =IF(C40="","",C40/C41) -> 0.9994176822
B44: =IF(C40="","",IF(C38>=C42,"DISTRIBUTION PRICE CONTROL FORMULA COMPLIANT","DISTRIBUTION PRICE CONTROL FORMULA BREACHED")) -> DISTRIBUTION PRICE CONTROL FORMULA COMPLIANT

Sheet 2021RebalContForm
B1: ="Tariff Approval - "&'Model update'!B3 -> Tariff Approval - Aust. Gas Networks (Vic & Albury) | C1: ='Model update'!B7&"RebalContForm" -> 2021RebalContForm
B3: ='Model update'!$B$5&" REBALANCING CONTROL FORMULA" -> 2021 REBALANCING CONTROL FORMULA
B6: Rebalancing control
B8: ="CPI "&'Model update'!$B$5 -> CPI 2021 | C8: ='2021TarContForm'!C11 -> -0.003484320557
B9: ="Y "&'Model update'!$B$5 -> Y 2021 | C9: 0.02
B10: ="PTt "&'Model update'!$B$5 -> PTt 2021 | C10: ='2021TarContForm'!C29 -> 0
B11: ="Xt "&'Model update'!$B$5 -> Xt 2021 | C11: ='2021TarContForm'!C17 -> -0.002912158543
B13: Rebalancing control | C13: =(1+C8)*(1+C9)*(1+C10)*(1-C11) -> 1.019406045
B17: Rebalancing control summary
C18: Existing | D18: Proposed | E18: Movement | F18: Assessment
B19: =B38 -> Tariff V - AGN Central - Residential | C19: =C59 -> 187261271.1 | D19: =C60 -> 187150939.9 | E19: =IF(C19=0,0,D19/C19) -> 0.9994108172 | F19: =IF(E19=0,"",IF($C$13<=E19,"Breached","Compliant")) -> Compliant
B20: =B68 -> Tariff V - AGN North - Residential | C20: =C89 -> 23578251.76 | D20: =C90 -> 23564757.91 | E20: =IF(C20=0,0,D20/C20) -> 0.999427699 | F20: =IF(E20=0,"",IF($C$13<=E20,"Breached","Compliant")) -> Compliant
B21: =B98 -> Tariff V - Murray Valley - Residential | C21: =C119 -> 2094889.931 | D21: =C120 -> 2093801.062 | E21: 0.9994802261 | F21: Compliant
B22: =B128 -> Tariff V - Bairnsdale - Residential | C22: =C149 -> 1771884.033 | D22: =C150 -> 1771204.314 | E22: 0.9996163863 | F22: Compliant
B23: =B158 -> Tariff V - AGN Central - Non Residential | C23: =C179 -> 17712877.32 | D23: =C180 -> 17702665.25 | E23: 0.999423466 | F23: Compliant
B24: =B188 -> Tariff V - AGN North - Non Residential | C24: =C209 -> 2051279.828 | D24: =C210 -> 2050105.314 | E24: 0.9994274238 | F24: =IF(E24=0,"",IF($C$13<=E24,"Breached","Compliant")) -> Compliant
B25: =B218 -> Tariff V - Murray Valley - Non Residential | C25: =C239 -> 220473.0869 | D25: =C240 -> 220350.593 | E25: 0.999444404 | F25: Compliant
B26: =B248 -> Tariff V - Bairnsdale - Non Residential | C26: =C269 -> 261270.4108 | D26: =C270 -> 261121.451 | E26: =IF(C26=0,0,D26/C26) -> 0.9994298637 | F26: =IF(E26=0,"",IF($C$13<=E26,"Breached","Compliant")) -> Compliant
B27: =B278 -> Tariff D - AGN Central | C27: =C293 -> 3385515.771 | D27: =C294 -> 3383544.267 | E27: =IF(C27=0,0,D27/C27) -> 0.999417665 | F27: =IF(E27=0,"",IF($C$13<=E27,"Breached","Compliant")) -> Compliant
B28: =B302 -> Tariff D - AGN North | C28: =C317 -> 1235592.724 | D28: =C318 -> 1234873.199 | E28: 0.9994176683 | F28: Compliant
B29: =B326 -> Tariff D - Murray Valley | C29: =C341 -> 299665.7234 | D29: =C342 -> 299491.2268 | E29: 0.9994176958 | F29: Compliant
B30: =B350 -> Tariff D - Bairnsdale | C30: =C365 -> 42776.97153 | D30: =C366 -> 42752.06159 | E30: 0.9994176787 | F30: Compliant
B31: =B374 -> Tariff V - Albury - Residential | C31: =C395 -> 6248463.286 | D31: =C396 -> 6245239.85 | E31: 0.9994841234 | F31: Compliant
B32: =B404 -> Tariff V - Albury - Non Residential | C32: =C425 -> 577842.0369 | D32: =C426 -> 577525.2132 | E32: 0.9994517121 | F32: Compliant
B33: =B434 -> Tariff D - Albury | C33: =C449 -> 180509.2431 | D33: =C450 -> 180404.1392 | E33: 0.9994177368 | F33: Compliant
C34: =SUM(C19:C33) -> 246922563.2 | D34: =SUM(D19:D33) -> 246778775.8 | E34: 0.9994176822
B38: =Prop2021DistTar!B6 -> Tariff V - AGN Central - Residential | C38: 1 | D38: 2 | E38: 3 | F38: 4 | G38: 5
C39: 1 | D39: 2 | E39: 3 | F39: 4 | G39: 5
B40: Distribution tariff | C40: Fixed | D40: Blk1 | E40: Blk2 | F40: Blk3
B42: ="Existing : "&Prop2021DistTar!C6 -> Existing : Tariff V - AGN Central - Residential | C42: =INDEX(Prop2021DistTar!$E$8:$E$11,C$39) -> 0.1931 | D42: =INDEX(Prop2021DistTar!$E$8:$E$11,D$39) -> 11.8925 | E42: =INDEX(Prop2021DistTar!$E$8:$E$11,E$39) -> 6.8378 | F42: =INDEX(Prop2021DistTar!$E$8:$E$11,F$39) -> 3.7538
B44: ="Proposed : "&B38 -> Proposed : Tariff V - AGN Central - Residential | C44: =INDEX(Prop2021DistTar!$D$8:$D$11,C$38) -> 0.193 | D44: =INDEX(Prop2021DistTar!$D$8:$D$11,D$38) -> 11.8856 | E44: =INDEX(Prop2021DistTar!$D$8:$D$11,E$38) -> 6.8338 | F44: =INDEX(Prop2021DistTar!$D$8:$D$11,F$38) -> 3.7514
B46: Distribution volumes (actual) | C46: =C$40 -> Fixed | D46: =D$40 -> Blk1 | E46: Blk2 | F46: Blk3
B48: =B42 -> Existing : Tariff V - AGN Central - Residential | C48: =INDEX(Prop2021DistTar!$F$8:$F$11,C$13) -> 205059578 | D48: =INDEX(Prop2021DistTar!$F$8:$F$11,D$38) -> 4898091.689 | E48: =INDEX(Prop2021DistTar!$F$8:$F$11,E$38) -> 3062512.153 | F48: =INDEX(Prop2021DistTar!$F$8:$F$11,F$38) -> 18240946.65
B50: =B44 -> Proposed : Tariff V - AGN Central - Residential | C50: =INDEX(Prop2021DistTar!$F$8:$F$11,C$38) -> 205059578 | D50: =INDEX(Prop2021DistTar!$F$8:$F$11,D$38) -> 4898091.689 | E50: =INDEX(Prop2021DistTar!$F$8:$F$11,E$38) -> 3062512.153 | F50: =INDEX(Prop2021DistTar!$F$8:$F$11,F$38) -> 18240946.65
B52: Distribution revenue | C52: =C$40 -> Fixed | D52: Blk1 | E52: Blk2 | F52: Blk3
B54: =B48 -> Existing : Tariff V - AGN Central - Residential | C54: =INDEX(Prop2021DistTar!$H$8:$H$11,C$39) -> 39597004.51 | D54: =INDEX(Prop2021DistTar!$H$8:$H$11,D$39) -> 58250555.41 | E54: =INDEX(Prop2021DistTar!$H$8:$H$11,E$39) -> 20940845.6 | F54: =INDEX(Prop2021DistTar!$H$8:$H$11,F$39) -> 68472865.54
B56: =B50 -> Proposed : Tariff V - AGN Central - Residential | C56: =INDEX(Prop2021DistTar!$G$8:$G$11,C$38) -> 39576498.55 | D56: =INDEX(Prop2021DistTar!$G$8:$G$11,D$38) -> 58216758.58 | E56: =INDEX(Prop2021DistTar!$G$8:$G$11,E$38) -> 20928595.55 | F56: =INDEX(Prop2021DistTar!$G$8:$G$11,F$38) -> 68429087.27
B58: Revenue | C58: Total
B59: =B54 -> Existing : Tariff V - AGN Central - Residential | C59: =SUM(C54:F54) -> 187261271.1
B60: =B56 -> Proposed : Tariff V - AGN Central - Residential | C60: =SUM(C56:F56) -> 187150939.9
B62: Average price movement | C62: =IF(C60=0,"",C60/C59) -> 0.9994108172
B64: =IF(C62="","",IF(C62<=$C$13,"REBALANCING CONTROL COMPLIANT","REBALANCING CONTROL BREACHED")) -> REBALANCING CONTROL COMPLIANT
B68: =Prop2021DistTar!B19 -> Tariff V - AGN North - Residential | C68: 1 | D68: 2 | E68: 3 | F68: 4
C69: 1 | D69: 2 | E69: 3 | F69: 4
B70: Distribution tariff | C70: Fixed | D70: Blk1 | E70: Blk2 | F70: Blk3
B72: ="Existing : "&Prop2021DistTar!C19 -> Existing : Tariff V - AGN North - Residential | C72: =INDEX(Prop2021DistTar!$E$21:$E$24,C$39) -> 0.1931 | D72: =INDEX(Prop2021DistTar!$E$21:$E$24,D$39) -> 10.4636 | E72: =INDEX(Prop2021DistTar!$E$21:$E$24,E$39) -> 6.1251 | F72: =INDEX(Prop2021DistTar!$E$21:$E$24,F$39) -> 3.3629
B74: ="Proposed : "&B68 -> Proposed : Tariff V - AGN North - Residential | C74: =INDEX(Prop2021DistTar!$D$21:$D$24,C$38) -> 0.193 | D74: =INDEX(Prop2021DistTar!$D$21:$D$24,D$38) -> 10.4575 | E74: =INDEX(Prop2021DistTar!$D$21:$D$24,E$38) -> 6.1215 | F74: =INDEX(Prop2021DistTar!$D$21:$D$24,F$38) -> 3.3609
B76: Distribution volumes (actual) | C76: Fixed | D76: PkBlk1 | E76: PkBlk2 | F76: PkBlk3
B78: =B72 -> Existing : Tariff V - AGN North - Residential | C78: =INDEX(Prop2021DistTar!$F$21:$F$24,C$38) -> 28977377 | D78: =INDEX(Prop2021DistTar!$F$21:$F$24,D$38) -> 664129.7528 | E78: =INDEX(Prop2021DistTar!$F$21:$F$24,E$38) -> 397382.04 | F78: =INDEX(Prop2021DistTar!$F$21:$F$24,F$38) -> 2557176.083
B80: =B74 -> Proposed : Tariff V - AGN North - Residential | C80: =INDEX(Prop2021DistTar!$F$21:$F$24,C$38) -> 28977377 | D80: =INDEX(Prop2021DistTar!$F$21:$F$24,D$38) -> 664129.7528 | E80: =INDEX(Prop2021DistTar!$F$21:$F$24,E$38) -> 397382.04 | F80: =INDEX(Prop2021DistTar!$F$21:$F$24,F$38) -> 2557176.083
B82: Distribution revenue | C82: Fixed | D82: PkBlk1 | E82: PkBlk2 | F82: PkBlk3
B84: =B78 -> Existing : Tariff V - AGN North - Residential | C84: =INDEX(Prop2021DistTar!$H$21:$H$24,C$39) -> 5595531.499 | D84: =INDEX(Prop2021DistTar!$H$21:$H$24,D$39) -> 6949188.081 | E84: =INDEX(Prop2021DistTar!$H$21:$H$24,E$39) -> 2434004.733 | F84: =INDEX(Prop2021DistTar!$H$21:$H$24,F$39) -> 8599527.449
B86: =B80 -> Proposed : Tariff V - AGN North - Residential | C86: =INDEX(Prop2021DistTar!$G$21:$G$24,C$38) -> 5592633.761 | D86: =INDEX(Prop2021DistTar!$G$21:$G$24,D$38) -> 6945136.89 | E86: =INDEX(Prop2021DistTar!$G$21:$G$24,E$38) -> 2432574.158 | F86: =INDEX(Prop2021DistTar!$G$21:$G$24,F$38) -> 8594413.097
B88: Revenue | C88: Total
B89: =B84 -> Existing : Tariff V - AGN North - Residential | C89: =SUM(C84:F84) -> 23578251.76
B90: =B86 -> Proposed : Tariff V - AGN North - Residential | C90: =SUM(C86:F86) -> 23564757.91
B92: Average price movement | C92: =IF(C90=0,"",C90/C89) -> 0.999427699
B94: =IF(C92="","",IF(C92<=$C$13,"REBALANCING CONTROL COMPLIANT","REBALANCING CONTROL BREACHED")) -> REBALANCING CONTROL COMPLIANT
B98: =Prop2021DistTar!B32 -> Tariff V - Murray Valley - Residential | C98: 1 | D98: 2 | E98: 3 | F98: 4
C99: 1 | D99: 2 | E99: 3 | F99: 4
B100: Distribution tariff | C100: Fixed | D100: Blk1 | E100: Blk2 | F100: Blk3
B102: ="Existing : "&Prop2021DistTar!C32 -> Existing : Tariff V - Murray Valley - Residential | C102: =INDEX(Prop2021DistTar!$E$34:$E$37,C$39) -> 0.2458 | D102: =INDEX(Prop2021DistTar!$E$34:$E$37,D$39) -> 9.1098 | E102: =INDEX(Prop2021DistTar!$E$34:$E$37,E$39) -> 5.5111 | F102: =INDEX(Prop2021DistTar!$E$34:$E$37,F$39) -> 3.4475
B104: ="Proposed : "&B98 -> Proposed : Tariff V - Murray Valley - Residential | C104: =INDEX(Prop2021DistTar!$D$34:$D$37,C$38) -> 0.2457 | D104: =INDEX(Prop2021DistTar!$D$34:$D$37,D$38) -> 9.1045 | E104: =INDEX(Prop2021DistTar!$D$34:$D$37,E$38) -> 5.5079 | F104: =INDEX(Prop2021DistTar!$D$34:$D$37,F$38) -> 3.4455
B106: Distribution volumes (actual) | C106: Fixed | D106: PkBlk1 | E106: PkBlk2 | F106: PkBlk3
B108: =B102 -> Existing : Tariff V - Murray Valley - Residential | C108: =INDEX(Prop2021DistTar!$F$34:$F$37,C$38) -> 2990930 | D108: =INDEX(Prop2021DistTar!$F$34:$F$37,D$38) -> 57802.15263 | E108: =INDEX(Prop2021DistTar!$F$34:$F$37,E$38) -> 30628.05682 | F108: =INDEX(Prop2021DistTar!$F$34:$F$37,F$38) -> 192707.47
B110: =B104 -> Proposed : Tariff V - Murray Valley - Residential | C110: =INDEX(Prop2021DistTar!$F$34:$F$37,C$38) -> 2990930 | D110: =INDEX(Prop2021DistTar!$F$34:$F$37,D$38) -> 57802.15263 | E110: =INDEX(Prop2021DistTar!$F$34:$F$37,E$38) -> 30628.05682 | F110: =INDEX(Prop2021DistTar!$F$34:$F$37,F$38) -> 192707.47
B112: Distribution revenue | C112: Fixed | D112: PkBlk1 | E112: PkBlk2 | F112: PkBlk3
B114: =B108 -> Existing : Tariff V - Murray Valley - Residential | C114: =INDEX(Prop2021DistTar!$H$34:$H$37,C$39) -> 735170.594 | D114: =INDEX(Prop2021DistTar!$H$34:$H$37,D$39) -> 526566.05 | E114: =INDEX(Prop2021DistTar!$H$34:$H$37,E$39) -> 168794.284 | F114: =INDEX(Prop2021DistTar!$H$34:$H$37,F$39) -> 664359.0028
B116: =B110 -> Proposed : Tariff V - Murray Valley - Residential | C116: =INDEX(Prop2021DistTar!$G$34:$G$37,C$38) -> 734871.501 | D116: =INDEX(Prop2021DistTar!$G$34:$G$37,D$38) -> 526259.6986 | E116: =INDEX(Prop2021DistTar!$G$34:$G$37,E$38) -> 168696.2742 | F116: =INDEX(Prop2021DistTar!$G$34:$G$37,F$38) -> 663973.5878
B118: Revenue | C118: Total
B119: =B114 -> Existing : Tariff V - Murray Valley - Residential | C119: =SUM(C114:F114) -> 2094889.931
B120: =B116 -> Proposed : Tariff V - Murray Valley - Residential | C120: =SUM(C116:F116) -> 2093801.062
B122: Average price movement | C122: =IF(C120=0,"",C120/C119) -> 0.9994802261
B124: =IF(C122="","",IF(C122<=$C$13,"REBALANCING CONTROL COMPLIANT","REBALANCING CONTROL BREACHED")) -> REBALANCING CONTROL COMPLIANT
B128: =Prop2021DistTar!B45 -> Tariff V - Bairnsdale - Residential | C128: 1 | D128: 2 | E128: 3 | F128: 4
C129: 1 | D129: 2 | E129: 3 | F129: 4
B130: Distribution tariff | C130: Fixed | D130: Blk1 | E130: Blk2 | F130: Blk3
B132: ="Existing : "&Prop2021DistTar!C45 -> Existing : Tariff V - Bairnsdale - Residential | C132: =INDEX(Prop2021DistTar!$E$47:$E$50,C$39) -> 0.3178 | D132: =INDEX(Prop2021DistTar!$E$47:$E$50,D$39) -> 19.4166 | E132: =INDEX(Prop2021DistTar!$E$47:$E$50,E$39) -> 11.2934 | F132: =INDEX(Prop2021DistTar!$E$47:$E$50,F$39) -> 6.1999
B134: ="Proposed : "&B128 -> Proposed : Tariff V - Bairnsdale - Residential | C134: =INDEX(Prop2021DistTar!$D$47:$D$50,C$38) -> 0.3176 | D134: =INDEX(Prop2021DistTar!$D$47:$D$50,D$38) -> 19.4053 | E134: =INDEX(Prop2021DistTar!$D$47:$D$50,E$38) -> 11.2868 | F134: =INDEX(Prop2021DistTar!$D$47:$D$50,F$38) -> 6.2017
B136: Distribution volumes (actual) | C136: Fixed | D136: PkBlk1 | E136: PkBlk2 | F136: PkBlk3
B138: =B132 -> Existing : Tariff V - Bairnsdale - Residential | C138: =INDEX(Prop2021DistTar!$F$47:$F$50,C$38) -> 1657399 | D138: =INDEX(Prop2021DistTar!$F$47:$F$50,D$38) -> 32506.66279 | E138: =INDEX(Prop2021DistTar!$F$47:$F$50,E$38) -> 16112.61018 | F138: =INDEX(Prop2021DistTar!$F$47:$F$50,F$38) -> 69682.99647
B140: =B134 -> Proposed : Tariff V - Bairnsdale - Residential | C140: =INDEX(Prop2021DistTar!$F$47:$F$50,C$38) -> 1657399 | D140: =INDEX(Prop2021DistTar!$F$47:$F$50,D$38) -> 32506.66279 | E140: =INDEX(Prop2021DistTar!$F$47:$F$50,E$38) -> 16112.61018 | F140: =INDEX(Prop2021DistTar!$F$47:$F$50,F$38) -> 69682.99647
B142: Distribution revenue | C142: Fixed | D142: PkBlk1 | E142: PkBlk2 | F142: PkBlk3
B144: =B138 -> Existing : Tariff V - Bairnsdale - Residential | C144: =INDEX(Prop2021DistTar!$H$47:$H$50,C$39) -> 526721.4022 | D144: =INDEX(Prop2021DistTar!$H$47:$H$50,D$39) -> 631168.8687 | E144: =INDEX(Prop2021DistTar!$H$47:$H$50,E$39) -> 181966.1518 | F144: =INDEX(Prop2021DistTar!$H$47:$H$50,F$39) -> 432027.6098
B146: =B140 -> Proposed : Tariff V - Bairnsdale - Residential | C146: =INDEX(Prop2021DistTar!$G$47:$G$50,C$38) -> 526389.9224 | D146: =INDEX(Prop2021DistTar!$G$47:$G$50,D$38) -> 630801.5435 | E146: =INDEX(Prop2021DistTar!$G$47:$G$50,E$38) -> 181859.8085 | F146: =INDEX(Prop2021DistTar!$G$47:$G$50,F$38) -> 432153.0392
B148: Revenue | C148: Total
B149: =B144 -> Existing : Tariff V - Bairnsdale - Residential | C149: =SUM(C144:F144) -> 1771884.033
B150: =B146 -> Proposed : Tariff V - Bairnsdale - Residential | C150: =SUM(C146:F146) -> 1771204.314
B152: Average price movement | C152: =IF(C150=0,"",C150/C149) -> 0.9996163863
B154: =IF(C152="","",IF(C152<=$C$13,"REBALANCING CONTROL COMPLIANT","REBALANCING CONTROL BREACHED")) -> REBALANCING CONTROL COMPLIANT
B158: =Prop2021DistTar!B12 -> Tariff V - AGN Central - Non Residential | C158: 1 | D158: 2 | E158: 3 | F158: 4 | G158: 5
C159: 1 | D159: 2 | E159: 3 | F159: 4 | G159: 5
B160: Distribution tariff | C160: Fixed | D160: Blk1 | E160: Blk2 | F160: Blk3 | G160: Blk4
B162: ="Existing : "&Prop2021DistTar!C12 -> Existing : Tariff V - AGN Central - Non Residential | C162: =INDEX(Prop2021DistTar!$E$14:$E$18,C$39) -> 0.1931 | D162: =INDEX(Prop2021DistTar!$E$14:$E$18,D$39) -> 8.3949 | E162: =INDEX(Prop2021DistTar!$E$14:$E$18,E$39) -> 3.9622 | F162: =INDEX(Prop2021DistTar!$E$14:$E$18,F$39) -> 2.9553 | G162: =INDEX(Prop2021DistTar!$E$14:$E$18,G$39) -> 1.1936
B164: ="Proposed : "&B158 -> Proposed : Tariff V - AGN Central - Non Residential | C164: =INDEX(Prop2021DistTar!$D$14:$D$18,C$38) -> 0.193 | D164: =INDEX(Prop2021DistTar!$D$14:$D$18,D$38) -> 8.39 | E164: =INDEX(Prop2021DistTar!$D$14:$D$18,E$38) -> 3.9599 | F164: =INDEX(Prop2021DistTar!$D$14:$D$18,F$38) -> 2.9536 | G164: =INDEX(Prop2021DistTar!$D$14:$D$18,G$38) -> 1.1929
B166: Distribution volumes (actual) | C166: Fixed | D166: PkBlk1 | E166: PkBlk2 | F166: PkBlk3 | G166: PkBlk4
B168: =B162 -> Existing : Tariff V - AGN Central - Non Residential | C168: =INDEX(Prop2021DistTar!$F$14:$F$18,C$38) -> 7304213 | D168: =INDEX(Prop2021DistTar!$F$14:$F$18,D$38) -> 266313.6479 | E168: =INDEX(Prop2021DistTar!$F$14:$F$18,E$38) -> 1443576.783 | F168: =INDEX(Prop2021DistTar!$F$14:$F$18,F$38) -> 1167065.009 | G168: =INDEX(Prop2021DistTar!$F$14:$F$18,G$38) -> 4103544.066
B170: =B164 -> Proposed : Tariff V - AGN Central - Non Residential | C170: =INDEX(Prop2021DistTar!$F$14:$F$18,C$38) -> 7304213 | D170: =INDEX(Prop2021DistTar!$F$14:$F$18,D$38) -> 266313.6479 | E170: =INDEX(Prop2021DistTar!$F$14:$F$18,E$38) -> 1443576.783 | F170: =INDEX(Prop2021DistTar!$F$14:$F$18,F$38) -> 1167065.009 | G170: =INDEX(Prop2021DistTar!$F$14:$F$18,G$38) -> 4103544.066
B172: Distribution revenue | C172: Fixed | D172: PkBlk1 | E172: PkBlk2 | F172: PkBlk3 | G172: PkBlk4
B174: =B168 -> Existing : Tariff V - AGN Central - Non Residential | C174: =INDEX(Prop2021DistTar!$H$14:$H$18,C$39) -> 1410443.53 | D174: =INDEX(Prop2021DistTar!$H$14:$H$18,D$39) -> 2235676.443 | E174: =INDEX(Prop2021DistTar!$H$14:$H$18,E$39) -> 5719739.93 | F174: =INDEX(Prop2021DistTar!$H$14:$H$18,F$39) -> 3449027.221 | G174: =INDEX(Prop2021DistTar!$H$14:$H$18,G$39) -> 4897990.198
B176: =B170 -> Proposed : Tariff V - AGN Central - Non Residential | C176: =INDEX(Prop2021DistTar!$G$14:$G$18,C$38) -> 1409713.109 | D176: =INDEX(Prop2021DistTar!$G$14:$G$18,D$38) -> 2234371.506 | E176: =INDEX(Prop2021DistTar!$G$14:$G$18,E$38) -> 5716419.704 | F176: =INDEX(Prop2021DistTar!$G$14:$G$18,F$38) -> 3447043.211 | G176: =INDEX(Prop2021DistTar!$G$14:$G$18,G$38) -> 4895117.717
B178: Revenue | C178: Total
B179: =B174 -> Existing : Tariff V - AGN Central - Non Residential | C179: =SUM(C174:G174) -> 17712877.32
B180: =B176 -> Proposed : Tariff V - AGN Central - Non Residential | C180: =SUM(C176:G176) -> 17702665.25
B182: Average price movement | C182: =IF(C180=0,"",C180/C179) -> 0.999423466
B184: =IF(C182="","",IF(C182<=$C$13,"REBALANCING CONTROL COMPLIANT","REBALANCING CONTROL BREACHED")) -> REBALANCING CONTROL COMPLIANT
B188: =Prop2021DistTar!B25 -> Tariff V - AGN North - Non Residential | C188: 1 | D188: 2 | E188: 3 | F188: 4 | G188: 5
C189: 1 | D189: 2 | E189: 3 | F189: 4 | G189: 5
B190: Distribution tariff | C190: Fixed | D190: Blk1 | E190: Blk2 | F190: Blk3 | G190: Blk4
B192: ="Existing : "&Prop2021DistTar!C25 -> Existing : Tariff V - AGN North - Non Residential | C192: =INDEX(Prop2021DistTar!$E$27:$E$31,C$39) -> 0.1931 | D192: =INDEX(Prop2021DistTar!$E$27:$E$31,D$39) -> 7.5303 | E192: =INDEX(Prop2021DistTar!$E$27:$E$31,E$39) -> 3.5809 | F192: =INDEX(Prop2021DistTar!$E$27:$E$31,F$39) -> 2.6707 | G192: =INDEX(Prop2021DistTar!$E$27:$E$31,G$39) -> 1.0791
B194: ="Proposed : "&B188 -> Proposed : Tariff V - AGN North - Non Residential | C194: =INDEX(Prop2021DistTar!$D$27:$D$31,C$38) -> 0.193 | D194: =INDEX(Prop2021DistTar!$D$27:$D$31,D$38) -> 7.5259 | E194: =INDEX(Prop2021DistTar!$D$27:$D$31,E$38) -> 3.5788 | F194: =INDEX(Prop2021DistTar!$D$27:$D$31,F$38) -> 2.6691 | G194: =INDEX(Prop2021DistTar!$D$27:$D$31,G$38) -> 1.0785
B196: Distribution volumes (actual) | C196: Fixed | D196: PkBlk1 | E196: PkBlk2 | F196: PkBlk3 | G196: PkBlk4
B198: =B192 -> Existing : Tariff V - AGN North - Non Residential | C198: =INDEX(Prop2021DistTar!$F$27:$F$31,C$38) -> 1197219 | D198: =INDEX(Prop2021DistTar!$F$27:$F$31,D$38) -> 37630.69701 | E198: =INDEX(Prop2021DistTar!$F$27:$F$31,E$38) -> 184739.003 | F198: =INDEX(Prop2021DistTar!$F$27:$F$31,F$38) -> 127263.1457 | G198: =INDEX(Prop2021DistTar!$F$27:$F$31,G$38) -> 496073.4155
B200: =B194 -> Proposed : Tariff V - AGN North - Non Residential | C200: =INDEX(Prop2021DistTar!$F$27:$F$31,C$38) -> 1197219 | D200: =INDEX(Prop2021DistTar!$F$27:$F$31,D$38) -> 37630.69701 | E200: =INDEX(Prop2021DistTar!$F$27:$F$31,E$38) -> 184739.003 | F200: =INDEX(Prop2021DistTar!$F$27:$F$31,F$38) -> 127263.1457 | G200: =INDEX(Prop2021DistTar!$F$27:$F$31,G$38) -> 496073.4155
B202: Distribution revenue | C202: Fixed | D202: PkBlk1 | E202: PkBlk2 | F202: PkBlk3 | G202: PkBlk4
B204: =B198 -> Existing : Tariff V - AGN North - Non Residential | C204: =INDEX(Prop2021DistTar!$H$27:$H$31,C$39) -> 231182.9889 | D204: =INDEX(Prop2021DistTar!$H$27:$H$31,D$39) -> 283370.4377 | E204: =INDEX(Prop2021DistTar!$H$27:$H$31,E$39) -> 661531.8958 | F204: =INDEX(Prop2021DistTar!$H$27:$H$31,F$39) -> 339881.6831 | G204: =INDEX(Prop2021DistTar!$H$27:$H$31,G$39) -> 535312.8227
B206: =B200 -> Proposed : Tariff V - AGN North - Non Residential | C206: =INDEX(Prop2021DistTar!$G$27:$G$31,C$38) -> 231063.267 | D206: =INDEX(Prop2021DistTar!$G$27:$G$31,D$38) -> 283204.8627 | E206: =INDEX(Prop2021DistTar!$G$27:$G$31,E$38) -> 661143.9439 | F206: =INDEX(Prop2021DistTar!$G$27:$G$31,F$38) -> 339678.0621 | G206: =INDEX(Prop2021DistTar!$G$27:$G$31,G$38) -> 535015.1786
B208: Revenue | C208: Total
B209: =B204 -> Existing : Tariff V - AGN North - Non Residential | C209: =SUM(C204:G204) -> 2051279.828
B210: =B206 -> Proposed : Tariff V - AGN North - Non Residential | C210: =SUM(C206:G206) -> 2050105.314
B212: Average price movement | C212: =IF(C210=0,"",C210/C209) -> 0.9994274238
B214: =IF(C212="","",IF(C212<=$C$13,"REBALANCING CONTROL COMPLIANT","REBALANCING CONTROL BREACHED")) -> REBALANCING CONTROL COMPLIANT
B218: =Prop2021DistTar!B38 -> Tariff V - Murray Valley - Non Residential | C218: 1 | D218: 2 | E218: 3 | F218: 4 | G218: 5
C219: 1 | D219: 2 | E219: 3 | F219: 4 | G219: 5
B220: Distribution tariff | C220: Fixed | D220: Blk1 | E220: Blk2 | F220: Blk3 | G220: Blk4
B222: ="Existing : "&Prop2021DistTar!C38 -> Existing : Tariff V - Murray Valley - Non Residential | C222: =INDEX(Prop2021DistTar!$E$40:$E$44,C$39) -> 0.2458 | D222: =INDEX(Prop2021DistTar!$E$40:$E$44,D$39) -> 6.733 | E222: =INDEX(Prop2021DistTar!$E$40:$E$44,E$39) -> 3.9767 | F222: =INDEX(Prop2021DistTar!$E$40:$E$44,F$39) -> 2.9678 | G222: =INDEX(Prop2021DistTar!$E$40:$E$44,G$39) -> 1.3435
B224: ="Proposed : "&B218 -> Proposed : Tariff V - Murray Valley - Non Residential | C224: =INDEX(Prop2021DistTar!$D$40:$D$44,C$38) -> 0.2457 | D224: =INDEX(Prop2021DistTar!$D$40:$D$44,D$38) -> 6.7291 | E224: =INDEX(Prop2021DistTar!$D$40:$D$44,E$38) -> 3.9744 | F224: =INDEX(Prop2021DistTar!$D$40:$D$44,F$38) -> 2.9661 | G224: =INDEX(Prop2021DistTar!$D$40:$D$44,G$38) -> 1.3427
B226: Distribution volumes (actual) | C226: Fixed | D226: PkBlk1 | E226: PkBlk2 | F226: PkBlk3 | G226: PkBlk4
B228: =B222 -> Existing : Tariff V - Murray Valley - Non Residential | C228: =INDEX(Prop2021DistTar!$F$40:$F$44,C$38) -> 130312 | D228: =INDEX(Prop2021DistTar!$F$40:$F$44,D$38) -> 4406.90509 | E228: =INDEX(Prop2021DistTar!$F$40:$F$44,E$38) -> 20671.54976 | F228: =INDEX(Prop2021DistTar!$F$40:$F$44,F$38) -> 12808.44619 | G228: =INDEX(Prop2021DistTar!$F$40:$F$44,G$38) -> 28696.12715
B230: =B224 -> Proposed : Tariff V - Murray Valley - Non Residential | C230: =INDEX(Prop2021DistTar!$F$40:$F$44,C$38) -> 130312 | D230: =INDEX(Prop2021DistTar!$F$40:$F$44,D$38) -> 4406.90509 | E230: =INDEX(Prop2021DistTar!$F$40:$F$44,E$38) -> 20671.54976 | F230: =INDEX(Prop2021DistTar!$F$40:$F$44,F$38) -> 12808.44619 | G230: =INDEX(Prop2021DistTar!$F$40:$F$44,G$38) -> 28696.12715
B232: Distribution revenue | C232: Fixed | D232: PkBlk1 | E232: PkBlk2 | F232: PkBlk3 | G232: PkBlk4
B234: =B228 -> Existing : Tariff V - Murray Valley - Non Residential | C234: =INDEX(Prop2021DistTar!$H$40:$H$44,C$39) -> 32030.6896 | D234: =INDEX(Prop2021DistTar!$H$40:$H$44,D$39) -> 29671.69197 | E234: =INDEX(Prop2021DistTar!$H$40:$H$44,E$39) -> 82204.55193 | F234: =INDEX(Prop2021DistTar!$H$40:$H$44,F$39) -> 38012.90662 | G234: =INDEX(Prop2021DistTar!$H$40:$H$44,G$39) -> 38553.24682
B236: =B230 -> Proposed : Tariff V - Murray Valley - Non Residential | C236: =INDEX(Prop2021DistTar!$G$40:$G$44,C$38) -> 32017.6584 | D236: =INDEX(Prop2021DistTar!$G$40:$G$44,D$38) -> 29654.50504 | E236: =INDEX(Prop2021DistTar!$G$40:$G$44,E$38) -> 82157.00737 | F236: =INDEX(Prop2021DistTar!$G$40:$G$44,F$38) -> 37991.13226 | G236: =INDEX(Prop2021DistTar!$G$40:$G$44,G$38) -> 38530.28992
B238: Revenue | C238: Total
B239: =B234 -> Existing : Tariff V - Murray Valley - Non Residential | C239: =SUM(C234:G234) -> 220473.0869
B240: =B236 -> Proposed : Tariff V - Murray Valley - Non Residential | C240: =SUM(C236:G236) -> 220350.593
B242: Average price movement | C242: =IF(C240=0,"",C240/C239) -> 0.999444404
B244: =IF(C242="","",IF(C242<=$C$13,"REBALANCING CONTROL COMPLIANT","REBALANCING CONTROL BREACHED")) -> REBALANCING CONTROL COMPLIANT
B248: =Prop2021DistTar!B51 -> Tariff V - Bairnsdale - Non Residential | C248: 1 | D248: 2 | E248: 3 | F248: 4 | G248: 5
C249: 1 | D249: 2 | E249: 3 | F249: 4 | G249: 5
B250: Distribution tariff | C250: Fixed | D250: Blk1 | E250: Blk2 | F250: Blk3 | G250: Blk4
B252: ="Existing : "&Prop2021DistTar!C51 -> Existing : Tariff V - Bairnsdale - Non Residential | C252: =INDEX(Prop2021DistTar!$E$53:$E$57,C$39) -> 0.3178 | D252: =INDEX(Prop2021DistTar!$E$53:$E$57,D$39) -> 13.8045 | E252: =INDEX(Prop2021DistTar!$E$53:$E$57,E$39) -> 6.73 | F252: =INDEX(Prop2021DistTar!$E$53:$E$57,F$39) -> 5.0178 | G252: =INDEX(Prop2021DistTar!$E$53:$E$57,G$39) -> 2.0267
B254: ="Proposed : "&B248 -> Proposed : Tariff V - Bairnsdale - Non Residential | C254: =INDEX(Prop2021DistTar!$D$53:$D$57,C$38) -> 0.3176 | D254: =INDEX(Prop2021DistTar!$D$53:$D$57,D$38) -> 13.7965 | E254: =INDEX(Prop2021DistTar!$D$53:$D$57,E$38) -> 6.7261 | F254: =INDEX(Prop2021DistTar!$D$53:$D$57,F$38) -> 5.0149 | G254: =INDEX(Prop2021DistTar!$D$53:$D$57,G$38) -> 2.0256
B256: Distribution volumes (actual) | C256: Fixed | D256: PkBlk1 | E256: PkBlk2 | F256: PkBlk3 | G256: PkBlk4
B258: =B252 -> Existing : Tariff V - Bairnsdale - Non Residential | C258: =INDEX(Prop2021DistTar!$F$53:$F$57,C$38) -> 43459 | D258: =INDEX(Prop2021DistTar!$F$53:$F$57,D$38) -> 1792.271719 | E258: =INDEX(Prop2021DistTar!$F$53:$F$57,E$38) -> 13124.72776 | F258: =INDEX(Prop2021DistTar!$F$53:$F$57,F$38) -> 10214.24861 | G258: =INDEX(Prop2021DistTar!$F$53:$F$57,G$38) -> 41020.00844
B260: =B254 -> Proposed : Tariff V - Bairnsdale - Non Residential | C260: =INDEX(Prop2021DistTar!$F$53:$F$57,C$38) -> 43459 | D260: =INDEX(Prop2021DistTar!$F$53:$F$57,D$38) -> 1792.271719 | E260: =INDEX(Prop2021DistTar!$F$53:$F$57,E$38) -> 13124.72776 | F260: =INDEX(Prop2021DistTar!$F$53:$F$57,F$38) -> 10214.24861 | G260: =INDEX(Prop2021DistTar!$F$53:$F$57,G$38) -> 41020.00844
B262: Distribution revenue | C262: Fixed | D262: PkBlk1 | E262: PkBlk2 | F262: PkBlk3 | G262: PkBlk4
B264: =B258 -> Existing : Tariff V - Bairnsdale - Non Residential | C264: =INDEX(Prop2021DistTar!$H$53:$H$57,C$39) -> 13811.2702 | D264: =INDEX(Prop2021DistTar!$H$53:$H$57,D$39) -> 24741.41495 | E264: =INDEX(Prop2021DistTar!$H$53:$H$57,E$39) -> 88329.41784 | F264: =INDEX(Prop2021DistTar!$H$53:$H$57,F$39) -> 51253.05668 | G264: =INDEX(Prop2021DistTar!$H$53:$H$57,G$39) -> 83135.25111
B266: =B260 -> Proposed : Tariff V - Bairnsdale - Non Residential | C266: =INDEX(Prop2021DistTar!$G$53:$G$57,C$38) -> 13802.5784 | D266: =INDEX(Prop2021DistTar!$G$53:$G$57,D$38) -> 24727.07677 | E266: =INDEX(Prop2021DistTar!$G$53:$G$57,E$38) -> 88278.2314 | F266: =INDEX(Prop2021DistTar!$G$53:$G$57,F$38) -> 51223.43536 | G266: =INDEX(Prop2021DistTar!$G$53:$G$57,G$38) -> 83090.1291
B268: Revenue | C268: Total
B269: =B264 -> Existing : Tariff V - Bairnsdale - Non Residential | C269: =SUM(C264:G264) -> 261270.4108
B270: =B266 -> Proposed : Tariff V - Bairnsdale - Non Residential | C270: =SUM(C266:G266) -> 261121.451
B272: Average price movement | C272: =IF(C270=0,"",C270/C269) -> 0.9994298637
B274: =IF(C272="","",IF(C272<=$C$13,"REBALANCING CONTROL COMPLIANT","REBALANCING CONTROL BREACHED")) -> REBALANCING CONTROL COMPLIANT
B278: =Prop2021DistTar!B59 -> Tariff D - AGN Central
C279: 1 | D279: 2 | E279: 3
B280: Distribution tariff | C280: DemBlk1 | D280: DemBlk2 | E280: DemBlk2
B281: ="Existing: "&Prop2021DistTar!C59 -> Existing: Tariff D - AGN Central | C281: =INDEX(Prop2021DistTar!$E$60:$E$62,C279) -> 1461.0058 | D281: =INDEX(Prop2021DistTar!$E$60:$E$62,D279) -> 893.1654 | E281: =INDEX(Prop2021DistTar!$E$60:$E$62,E279) -> 163.1104
B282: ="Proposed: "&B278 -> Proposed: Tariff D - AGN Central | C282: =INDEX(Prop2021DistTar!$D$60:$D$62,C279) -> 1460.155 | D282: =INDEX(Prop2021DistTar!$D$60:$D$62,D279) -> 892.6453 | E282: =INDEX(Prop2021DistTar!$D$60:$D$62,E279) -> 163.0154
B284: Distribution volumes (actual) | C284: DemBlk1 | D284: DemBlk2 | E284: DemBlk2
B285: =B281 -> Existing: Tariff D - AGN Central | C285: =INDEX(Prop2021DistTar!$F$60:$F$62,C$38) -> 1429.1396 | D285: =INDEX(Prop2021DistTar!$F$60:$F$62,D$38) -> 1224.1338 | E285: =INDEX(Prop2021DistTar!$F$60:$F$62,E$38) -> 1251.7937
B286: =B282 -> Proposed: Tariff D - AGN Central | C286: =INDEX(Prop2021DistTar!$F$60:$F$62,C$38) -> 1429.1396 | D286: =INDEX(Prop2021DistTar!$F$60:$F$62,D$38) -> 1224.1338 | E286: =INDEX(Prop2021DistTar!$F$60:$F$62,E$38) -> 1251.7937
B288: Distribution revenue | C288: DemBlk1 | D288: DemBlk2 | E288: DemBlk2
B289: =B285 -> Existing: Tariff D - AGN Central | C289: =INDEX(Prop2021DistTar!$H$60:$H$62,C279) -> 2087981.245 | D289: =INDEX(Prop2021DistTar!$H$60:$H$62,D279) -> 1093353.955 | E289: =INDEX(Prop2021DistTar!$H$60:$H$62,E279) -> 204180.5711
B290: =B286 -> Proposed: Tariff D - AGN Central | C290: =INDEX(Prop2021DistTar!$G$60:$G$62,C279) -> 2086765.333 | D290: =INDEX(Prop2021DistTar!$G$60:$G$62,D279) -> 1092717.283 | E290: =INDEX(Prop2021DistTar!$G$60:$G$62,E279) -> 204061.6507
B292: Revenue | C292: Total
B293: =B289 -> Existing: Tariff D - AGN Central | C293: =SUM(C289:E289) -> 3385515.771
B294: =B290 -> Proposed: Tariff D - AGN Central | C294: =SUM(C290:E290) -> 3383544.267
B296: Average price movement | C296: =IF(C294=0,"",C294/C293) -> 0.999417665
B298: =IF(C296="","",IF(C296<=$C$13,"REBALANCING CONTROL COMPLIANT","REBALANCING CONTROL BREACHED")) -> REBALANCING CONTROL COMPLIANT
B302: =Prop2021DistTar!B64 -> Tariff D - AGN North
C303: 1 | D303: 2 | E303: 3
B304: Distribution tariff | C304: DemBlk1 | D304: DemBlk2 | E304: DemBlk2
B305: ="Existing: "&Prop2021DistTar!C64 -> Existing: Tariff D - AGN North | C305: =INDEX(Prop2021DistTar!$E$65:$E$67,C303) -> 1461.0058 | D305: =INDEX(Prop2021DistTar!$E$65:$E$67,D303) -> 893.1654 | E305: =INDEX(Prop2021DistTar!$E$65:$E$67,E303) -> 163.1104
B306: ="Proposed: "&B302 -> Proposed: Tariff D - AGN North | C306: =INDEX(Prop2021DistTar!$D$65:$D$67,C303) -> 1460.155 | D306: =INDEX(Prop2021DistTar!$D$65:$D$67,D303) -> 892.6453 | E306: =INDEX(Prop2021DistTar!$D$65:$D$67,E303) -> 163.0154
B308: Distribution volumes (actual) | C308: DemBlk1 | D308: DemBlk2 | E308: DemBlk2
B309: =B305 -> Existing: Tariff D - AGN North | C309: =INDEX(Prop2021DistTar!$F$65:$F$67,C$38) -> 429.6987 | D309: =INDEX(Prop2021DistTar!$F$65:$F$67,D$38) -> 600.4019 | E309: =INDEX(Prop2021DistTar!$F$65:$F$67,E$38) -> 438.6123
B310: =B306 -> Proposed: Tariff D - AGN North | C310: =INDEX(Prop2021DistTar!$F$65:$F$67,C$38) -> 429.6987 | D310: =INDEX(Prop2021DistTar!$F$65:$F$67,D$38) -> 600.4019 | E310: =INDEX(Prop2021DistTar!$F$65:$F$67,E$38) -> 438.6123
B312: Distribution revenue | C312: DemBlk1 | D312: DemBlk2 | E312: DemBlk2
B313: =B309 -> Existing: Tariff D - AGN North | C313: =INDEX(Prop2021DistTar!$H$65:$H$67,C303) -> 627792.293 | D313: =INDEX(Prop2021DistTar!$H$65:$H$67,D303) -> 536258.2032 | E313: =INDEX(Prop2021DistTar!$H$65:$H$67,E303) -> 71542.2277
B314: =B310 -> Proposed: Tariff D - AGN North | C314: =INDEX(Prop2021DistTar!$G$65:$G$67,C303) -> 627426.7053 | D314: =INDEX(Prop2021DistTar!$G$65:$G$67,D303) -> 535945.9341 | E314: =INDEX(Prop2021DistTar!$G$65:$G$67,E303) -> 71500.55953
B316: Revenue | C316: Total
B317: =B313 -> Existing: Tariff D - AGN North | C317: =SUM(C313:E313) -> 1235592.724
B318: =B314 -> Proposed: Tariff D - AGN North | C318: =SUM(C314:E314) -> 1234873.199
B320: Average price movement | C320: =IF(C318=0,"",C318/C317) -> 0.9994176683
B322: =IF(C320="","",IF(C320<=$C$13,"REBALANCING CONTROL COMPLIANT","REBALANCING CONTROL BREACHED")) -> REBALANCING CONTROL COMPLIANT
B326: =Prop2021DistTar!B69 -> Tariff D - Murray Valley
C327: 1 | D327: 2 | E327: 3
B328: Distribution tariff | C328: DemBlk1 | D328: DemBlk2 | E328: DemBlk2
B329: ="Existing: "&Prop2021DistTar!C69 -> Existing: Tariff D - Murray Valley | C329: =INDEX(Prop2021DistTar!$E$70:$E$72,C327) -> 1702.9777 | D329: =INDEX(Prop2021DistTar!$E$70:$E$72,D327) -> 1050.8447 | E329: =INDEX(Prop2021DistTar!$E$70:$E$72,E327) -> 178.9774
B330: ="Proposed: "&B326 -> Proposed: Tariff D - Murray Valley | C330: =INDEX(Prop2021DistTar!$D$70:$D$72,C327) -> 1701.986 | D330: =INDEX(Prop2021DistTar!$D$70:$D$72,D327) -> 1050.2328 | E330: =INDEX(Prop2021DistTar!$D$70:$D$72,E327) -> 178.8732
B332: Distribution volumes (actual) | C332: DemBlk1 | D332: DemBlk2 | E332: DemBlk2
B333: =B329 -> Existing: Tariff D - Murray Valley | C333: =INDEX(Prop2021DistTar!$F$70:$F$72,C$38) -> 68.4403 | D333: =INDEX(Prop2021DistTar!$F$70:$F$72,D$38) -> 160.8371 | E333: =INDEX(Prop2021DistTar!$F$70:$F$72,E$38) -> 78.7731
B334: =B330 -> Proposed: Tariff D - Murray Valley | C334: =INDEX(Prop2021DistTar!$F$70:$F$72,C$38) -> 68.4403 | D334: =INDEX(Prop2021DistTar!$F$70:$F$72,D$38) -> 160.8371 | E334: =INDEX(Prop2021DistTar!$F$70:$F$72,E$38) -> 78.7731
B336: Distribution revenue | C336: DemBlk1 | D336: DemBlk2 | E336: DemBlk2
B337: =B333 -> Existing: Tariff D - Murray Valley | C337: =INDEX(Prop2021DistTar!$H$70:$H$72,C327) -> 116552.3047 | D337: =INDEX(Prop2021DistTar!$H$70:$H$72,D327) -> 169014.8141 | E337: =INDEX(Prop2021DistTar!$H$70:$H$72,E327) -> 14098.60463
B338: =B334 -> Proposed: Tariff D - Murray Valley | C338: =INDEX(Prop2021DistTar!$G$70:$G$72,C327) -> 116484.4324 | D338: =INDEX(Prop2021DistTar!$G$70:$G$72,D327) -> 168916.3979 | E338: =INDEX(Prop2021DistTar!$G$70:$G$72,E327) -> 14090.39647
B340: Revenue | C340: Total
B341: =B337 -> Existing: Tariff D - Murray Valley | C341: =SUM(C337:E337) -> 299665.7234
B342: =B338 -> Proposed: Tariff D - Murray Valley | C342: =SUM(C338:E338) -> 299491.2268
... 66 more rows

Sheet ARS
A1: ="Tariff Approval - "&'Model update'!B3 -> Tariff Approval - Aust. Gas Networks (Vic & Albury)
A3: Ancillary Reference Services (Exc GST)
B5: ='Model update'!$B$8 -> 2020 | C5: ='Model update'!$B$5 -> 2021
A6: Meter and Gas Installation Test | B6: 221 | C6: =ROUND(B6*(1+'Model update'!$B$30),0) -> 220
A7: Disconnection | B7: 73 | C7: =ROUND(B7*(1+'Model update'!$B$30),0) -> 73
A8: Reconnection | B8: 85 | C8: =ROUND(B8*(1+'Model update'!$B$30),0) -> 85
A9: Meter Removal | B9: 104 | C9: =ROUND(B9*(1+'Model update'!$B$30),0) -> 104
A10: Meter Reinstallation | B10: 104 | C10: =ROUND(B10*(1+'Model update'!$B$30),0) -> 104
A11: Special Meter Read - Metropolitan | B11: 9.3 | C11: =ROUND(B11*(1+'Model update'!$B$30),1) -> 9.3
A12: Special Meter Read - Non Metropolitan | B12: 12.8 | C12: =ROUND(B12*(1+'Model update'!$B$30),1) -> 12.8
A14: ="Note: "&'Model update'!$B$5&" formula is as per AA2018-22, Section 4.4.2, p9 : ART = ARTt-1 * (1+CPI)" -> Note: 2021 formula is as per AA2018-22, Section 4.4.2, p9 : ART = ARTt-1 * (1+CPI)
